bitfinex/quotes_ETHUSD_20250123
["timestamp","ask_amount","ask_price","bid_price","bid_amount"]
[1737646330895,3.0,3237.7,3237.0,3.94457]
[1737646331051,3.08853,3237.8,3237.0,3.94457]
[1737646331250,3.08853,3237.8,3237.0,0.8553]
[1737646331485,3.61559359,3237.9,3237.0,0.8553]
[1737646331850,3.08862,3237.7,3237.0,0.8553]
[1737646332062,3.08861,3237.7,3237.0,0.8553]
[1737646332272,3.08882,3237.5,3237.0,0.8553]
[1737646332496,3.08875,3237.6,3237.0,0.8553]
[1737646332692,3.0,3237.7,3237.0,0.8553]
[1737646332894,3.70403359,3237.9,3237.0,0.8553]
[1737646333077,3.08868,3237.7,3237.0,0.8553]
[1737646333566,3.08871,3237.6,3237.0,0.8553]
[1737646333960,3.089,3237.3,3236.4,3.08981]
[1737646334319,3.08909,3237.2,3236.5,0.8681]
[1737646334619,6.08901,3237.3,3236.5,0.8681]
[1737646334796,3.08917,3237.2,3236.5,0.8681]
[1737646334972,3.0,3237.7,3236.5,0.8681]
[1737646335176,3.08986,3236.4,3235.7,0.8196]
[1737646335503,3.08997,3236.3,3235.7,0.8196]
[1737646335664,0.2617,3237.0,3235.7,0.8196]
[1737646335865,3.0904,3235.9,3235.7,0.8196]
[1737646336107,3.0,3235.8,3234.8,4.01471741]
[1737646336265,0.2617,3236.0,3234.8,4.01471741]
[1737646336266,3.09109,3235.1,3234.8,4.01471741]
[1737646336468,6.09128,3234.9,3234.8,3.19381741]
[1737646336803,3.0,3234.9,3234.8,3.19381741]
[1737646337110,6.09128,3234.9,3234.8,3.19381741]
[1737646337871,3.0,3234.9,3234.8,3.19381741]
[1737646338072,3.09044,3235.8,3234.8,3.19381741]
[1737646338277,0.2617,3236.0,3234.8,3.19381741]
[1737646338278,3.09078,3235.5,3234.8,3.19381741]
[1737646338495,3.0,3235.5,3234.8,3.19381741]
[1737646338689,0.60489461,3235.6,3234.4,3.19381741]
[1737646338888,3.09045,3235.8,3234.6,3.09153]
[1737646339178,3.09024,3236.0,3234.8,3.09136]
[1737646339374,3.09034,3235.9,3234.6,0.8599]
[1737646339579,3.09117,3235.1,3234.6,0.8599]
[1737646339791,3.0912,3235.0,3234.6,0.8599]
[1737646339986,6.09103,3235.2,3234.6,0.8599]
[1737646340311,3.091,3235.2,3234.6,0.8599]
[1737646340616,3.09124,3235.0,3234.6,0.8599]
[1737646340811,6.09101,3235.2,3234.6,0.8599]
[1737646341129,3.09101,3235.2,3234.6,0.8599]
[1737646341279,3.0,3235.0,3234.4,3.19381741]
[1737646341474,3.09166,3234.5,3234.4,3.19381741]
[1737646341814,6.09166,3234.5,3234.4,3.19381741]
[1737646341974,3.091,3235.2,3234.4,3.19381741]
[1737646342215,3.09082,3235.4,3234.5,0.8379]
[1737646342546,3.0,3235.3,3234.5,0.8379]
[1737646342858,3.09047,3235.8,3234.5,0.8379]
[1737646343068,0.62878813,3236.0,3234.7,3.09147]
[1737646343272,0.62878813,3236.0,3235.1,3.09108]
[1737646343564,3.08943,3236.9,3235.8,3.09033]
[1737646343770,3.08918,3237.1,3235.9,0.8111]
[1737646344068,3.09002,3236.3,3235.9,0.8111]
[1737646344248,3.09002,3236.3,3235.3,0.8111]
[1737646344448,3.09022,3236.1,3235.3,0.8111]
[1737646344964,3.09024,3236.0,3235.3,0.8111]
[1737646345268,3.09017,3236.1,3235.3,0.8111]
[1737646345470,3.09056,3235.7,3235.3,0.8111]
[1737646345671,3.09062,3235.6,3235.3,0.8111]
[1737646346215,3.09096,3235.3,3234.7,0.8213]
[1737646346423,3.0,3235.5,3234.7,0.8213]
[1737646346667,3.09116,3235.1,3234.7,0.8213]
[1737646347225,3.09116,3235.1,3234.1,0.61752347]
[1737646347226,3.09155,3234.7,3234.1,0.8213]
[1737646347751,3.09163,3234.6,3234.1,0.8213]
[1737646347949,3.09128,3235.0,3234.1,0.8213]
[1737646348145,0.62691546,3235.5,3234.1,0.8213]
[1737646348330,3.09112,3235.1,3234.1,0.8213]
[1737646348519,3.0909,3235.3,3234.3,3.09185]
[1737646348718,3.0909,3235.3,3234.2,3.09193]
[1737646348947,3.09073,3235.5,3234.3,3.09185]
[1737646349158,3.09073,3235.5,3234.6,3.09156]
[1737646349321,3.09073,3235.5,3234.8,0.61177705]
[1737646349524,3.09073,3235.5,3234.4,3.09173]
[1737646349827,3.0,3235.6,3234.7,3.09145]
[1737646350035,3.09071,3235.5,3234.9,0.843]
[1737646350360,3.0,3235.6,3234.9,0.843]
[1737646350555,3.08985,3236.5,3234.9,0.843]
[1737646350556,3.09007,3236.2,3234.9,0.843]
[1737646350763,3.09007,3236.2,3234.7,0.61196242]
[1737646350764,3.08948,3236.8,3235.8,0.8622]
[1737646350932,3.08948,3236.8,3235.9,3.0903]
[1737646351137,0.2617,3237.4,3235.8,0.8622]
[1737646351138,3.08969,3236.6,3235.8,0.8622]
[1737646351333,3.09002,3236.3,3235.8,0.8622]
[1737646351541,3.0,3236.7,3235.1,0.8622]
[1737646351737,3.09024,3236.0,3235.1,0.8622]
[1737646351951,3.08991,3236.4,3235.1,0.8622]
[1737646352242,3.09012,3236.2,3235.3,3.09081]
[1737646352839,6.08976,3236.5,3235.1,0.8622]
[1737646353023,3.0896,3236.7,3235.8,0.7995]
[1737646353218,3.2617,3237.0,3235.8,0.7995]
[1737646353219,3.0,3236.8,3235.8,0.7995]
[1737646353424,3.09026,3236.0,3235.8,0.7995]
[1737646353658,3.09006,3236.2,3235.8,0.7995]
[1737646354155,3.08966,3236.7,3235.8,0.7995]
[1737646354359,3.08921,3237.1,3236.2,3.08997]
[1737646354561,3.08884,3237.5,3236.7,3.08952]
[1737646354761,3.08823,3238.1,3237.2,3.08906]
[1737646354926,3.3492,3238.9,3237.4,3.08889]
[1737646355127,3.08814,3238.2,3237.5,0.8278]
[1737646355372,3.08783,3238.6,3237.5,0.8278]
[1737646355661,3.0868,3239.6,3238.5,3.0878]
[1737646355963,3.08718,3239.2,3238.4,0.8278]
[1737646356741,3.0,3239.3,3238.4,0.8278]
[1737646357084,3.08709,3239.3,3238.4,0.8278]
[1737646357632,3.08709,3239.3,3238.4,3.91571]
[1737646357827,0.2617,3239.8,3238.5,3.08782]
[1737646358134,3.08699,3239.4,3238.5,3.08782]
[1737646358325,3.08709,3239.3,3238.4,0.8278]
[1737646358736,3.08709,3239.3,3238.4,3.91568]
[1737646358884,3.0,3239.4,3238.5,3.08781]
[1737646359084,6.08701,3239.4,3238.5,3.08781]
[1737646359787,3.08719,3239.2,3238.4,0.8278]
[1737646360015,6.08701,3239.4,3238.4,3.9157]
[1737646360196,4.30321162,3241.2,3238.4,0.8278]
[1737646360396,3.08598,3240.5,3239.3,3.08708]
[1737646360618,3.08598,3240.5,3239.5,3.0868]
[1737646361010,3.34725,3241.0,3239.2,0.795]
[1737646361011,0.2617,3241.0,3239.2,0.795]
[1737646361180,3.08602,3240.5,3239.2,2.33181849]
[1737646361383,3.08602,3240.5,3239.3,0.00099212]
[1737646361686,3.08602,3240.5,3239.3,3.08905428]
[1737646361879,3.08621,3240.3,3239.3,3.08905428]
[1737646362085,3.08571,3240.8,3239.8,3.08659]
[1737646362283,3.08573,3240.8,3239.9,3.94891079]
[1737646362483,3.08584,3240.6,3239.9,0.86242079]
[1737646362740,3.08546,3241.0,3239.9,0.86242079]
[1737646362941,3.08518,3241.3,3239.9,0.86242079]
[1737646363230,3.08611,3240.4,3239.9,0.86242079]
[1737646363380,3.08633,3240.1,3239.9,0.86242079]
[1737646363584,7.60321162,3241.2,3239.0,1.54572293]
[1737646363824,7.60321162,3241.2,3239.4,0.8511]
[1737646364107,3.55,3241.2,3239.4,0.8511]
[1737646364419,0.2617,3241.4,3239.9,4.66741547]
[1737646364648,0.2617,3241.4,3240.0,0.8311]
[1737646364915,0.2617,3241.4,3240.0,0.83215706]
[1737646365116,0.2617,3241.4,3240.1,0.00105634]
[1737646365317,0.2617,3241.4,3240.1,0.00611478]
[1737646365516,0.2617,3241.4,3240.2,0.00590348]
[1737646365719,3.08573,3240.8,3240.1,0.00708414]
[1737646365923,3.08547,3241.0,3240.1,0.00708414]
[1737646366130,3.08606,3240.4,3240.1,0.00708414]
[1737646366342,3.08622,3240.2,3240.1,0.00708414]
[1737646366483,3.08622,3240.2,3239.9,1.58091547]
[1737646366684,3.08661,3239.8,3239.7,1.50559643]
[1737646366884,3.08633,3240.1,3239.3,1.50569095]
[1737646367092,0.2903,3240.9,3239.3,1.50569095]
[1737646367344,0.2903,3240.9,3239.4,0.0068494]
[1737646367489,0.2903,3240.9,3239.6,1.53190493]
[1737646367689,0.2903,3240.9,3239.3,1.50569095]
[1737646367926,0.2903,3240.9,3239.6,1.5387542]
[1737646368189,0.55,3240.8,3239.6,1.5387542]
[1737646368407,0.2903,3240.9,3239.6,1.5387542]
[1737646368822,0.00871997,3240.3,3239.6,1.5387542]
[1737646369334,0.00871997,3240.3,3239.6,0.00684927]
[1737646369498,0.00871997,3240.3,3239.4,1.59361146]
[1737646369706,0.00871997,3240.3,3240.1,1.55229924]
[1737646372699,2.09249,3241.5,3240.1,1.55229924]
[1737646372924,1.54295,3240.6,3240.0,0.8543]
[1737646373124,1.54305,3240.4,3240.1,0.00139987]
[1737646373328,1.54305,3240.4,3240.0,0.8543]
[1737646373635,3.0,3240.6,3240.0,0.8543]
[1737646373636,1.54307,3240.3,3240.0,0.8543]
[1737646374202,1.54297,3240.5,3240.0,0.8543]
[1737646374452,1.54297,3240.5,3240.1,0.00118088]
[1737646374922,1.54297,3240.5,3239.7,0.00141705]
[1737646376140,0.2903,3242.0,3239.8,1.52524424]
[1737646376341,0.2903,3242.0,3240.4,1.50523434]
[1737646376539,0.75,3242.6,3240.5,1.55415154]
[1737646376836,0.2903,3242.7,3240.5,4.64009154]
[1737646377028,0.2903,3242.2,3240.5,1.55415154]
[1737646377228,0.55,3242.1,3240.5,2.01817669]
[1737646377406,0.2903,3242.2,3240.7,0.8064]
[1737646377604,0.2903,3242.2,3240.8,0.00147547]
[1737646378117,0.55,3242.1,3240.8,0.00147547]
[1737646379837,0.2903,3242.2,3240.8,0.00147547]
[1737646380048,0.2903,3242.2,3240.9,0.38936155]
[1737646380254,0.2903,3242.2,3241.0,0.00118055]
[1737646380435,0.2903,3242.2,3240.7,0.8064]
[1737646380436,0.2903,3242.2,3240.9,0.00590176]
[1737646380639,0.2903,3243.6,3241.5,0.8701]
[1737646381069,0.5,3243.6,3241.5,0.8701]
[1737646381391,0.2903,3243.4,3241.5,1.265614]
[1737646381540,0.25,3243.1,3240.5,2.01670288]
[1737646381880,0.55,3242.9,3240.8,0.8247]
[1737646382171,0.2903,3243.0,3241.4,3.08505]
[1737646382372,0.2903,3243.0,3241.5,0.8725]
[1737646382778,0.87196547,3242.9,3241.5,0.8725]
[1737646383081,3.0,3243.6,3240.8,0.8725]
[1737646383082,0.55,3242.7,3240.8,0.8725]
[1737646383370,0.2903,3242.8,3241.2,0.00099076]
[1737646384251,0.55,3242.7,3241.2,0.00099076]
[1737646384480,0.55,3242.7,3240.9,0.00118881]
[1737646385290,0.55,3242.9,3240.9,0.00118881]
[1737646385453,0.55,3242.5,3240.9,0.00118881]
[1737646385851,0.2903,3242.6,3241.0,3.08538]
[1737646386170,0.2903,3242.6,3241.1,0.61843638]
[1737646386786,0.2903,3242.6,3241.1,0.0012285]
[1737646387091,0.2903,3242.6,3240.9,0.00123638]
[1737646387092,0.55,3242.5,3240.9,0.00123638]
[1737646387306,0.55,3242.3,3240.9,0.00123638]
[1737646387507,0.2903,3242.5,3240.9,0.00123638]
[1737646387812,0.2903,3242.3,3240.6,0.00123801]
[1737646387968,0.2903,3242.3,3240.8,0.8499]
[1737646388306,0.2903,3242.3,3241.1,3.08531]
[1737646388514,0.2903,3242.3,3241.2,3.0913878]
[1737646388718,0.2903,3242.3,3241.2,0.0061378]
[1737646389015,0.2903,3242.3,3241.0,0.00613811]
[1737646389187,0.2903,3242.3,3241.1,0.30916581]
[1737646389384,0.2903,3242.3,3241.2,0.00633632]
[1737646389772,0.2903,3242.3,3241.2,3.09157632]
[1737646390526,0.2903,3242.3,3241.3,3.08517]
[1737646390705,0.2903,3242.3,3241.1,0.30916581]
[1737646390888,0.2903,3242.3,3241.2,0.00590129]
[1737646390889,3.0,3242.2,3241.2,0.00590129]
[1737646391211,2.46792,3241.6,3240.9,0.00613733]
[1737646391419,2.46792,3241.6,3241.0,3.08544]
[1737646391623,2.46766,3242.0,3241.1,3.08535]
[1737646391786,2.46753,3242.1,3241.1,0.0061468]
[1737646392112,2.46786,3241.7,3241.2,0.30915268]
[1737646392500,2.46758,3242.1,3241.2,0.30915268]
[1737646392705,2.46758,3242.1,3241.5,3.08492]
[1737646392908,2.46763,3242.0,3241.3,3.08511]
[1737646393094,2.46758,3242.1,3241.2,0.8499]
[1737646393095,2.46758,3242.1,3241.4,3.08502]
[1737646393288,2.46718,3242.6,3241.2,3.93516]
[1737646393517,2.46718,3242.6,3241.2,0.8499]
[1737646393518,2.46788,3241.7,3241.2,0.8499]
[1737646393728,2.46788,3241.7,3241.2,1.551959]
[1737646394074,0.2903,3242.8,3241.2,1.551959]
[1737646394279,0.32197109,3243.3,3241.2,1.551959]
[1737646394280,0.61227109,3243.3,3241.5,0.55]
[1737646394474,0.61227109,3243.3,3242.4,3.08407]
[1737646394826,0.61227109,3243.3,3242.5,3.084]
[1737646395173,0.32197109,3243.3,3242.4,3.08407]
[1737646395519,0.2903,3243.7,3242.5,4.64276188]
[1737646396421,0.2903,3243.7,3242.4,1.51440748]
[1737646397227,0.2903,3243.7,3242.6,1.50766666]
[1737646397425,0.2903,3243.7,3242.4,4.59852748]
[1737646397667,0.2903,3243.7,3242.4,1.51440748]
[1737646397841,0.55,3243.6,3242.0,1.51871507]
[1737646398044,0.2903,3243.7,3242.2,1.55594165]
[1737646398250,0.2903,3243.7,3242.0,1.51871507]
[1737646398438,0.55,3243.6,3242.0,1.51871507]
[1737646399325,0.55,3243.4,3242.0,1.51871507]
[1737646399872,3.0,3243.9,3242.0,1.51871507]
[1737646399873,0.3051,3243.3,3242.0,1.51871507]
[1737646400075,0.3051,3243.3,3242.2,1.55594165]
[1737646400573,0.23818246,3243.5,3242.2,1.55594165]
[1737646400864,0.55,3243.8,3242.2,1.55594165]
[1737646401660,3.0,3243.9,3242.2,1.55594165]
[1737646401965,4.05321162,3244.5,3242.4,1.51440748]
[1737646402132,0.55,3244.4,3242.6,1.50766666]
[1737646402357,3.55,3244.4,3242.7,0.00117983]
[1737646403085,3.55,3244.4,3242.7,0.87287983]
[1737646403254,3.55,3244.5,3242.7,0.87287983]
[1737646403459,1.54181,3243.0,3242.7,0.87287983]
[1737646403655,1.54181,3243.0,3242.8,0.23805465]
[1737646404097,1.54182,3242.9,3242.8,0.23805465]
[1737646404298,1.54172,3243.2,3242.8,0.23805465]
[1737646404502,3.0,3244.5,3242.8,0.23805465]
[1737646404799,1.54163,3243.4,3242.8,0.23805465]
[1737646405098,1.54163,3243.4,3242.9,0.41935947]
[1737646405308,1.54145,3243.7,3242.9,0.41935947]
[1737646405456,1.54155,3243.5,3242.9,3.50298947]
[1737646406129,1.54126,3244.1,3242.9,3.50298947]
[1737646406130,1.54178,3243.0,3242.9,0.41935947]
[1737646406398,1.54178,3243.0,3242.7,0.8717]
[1737646406959,1.54185,3242.9,3242.7,0.8717]
[1737646407260,1.54178,3243.0,3242.7,0.8717]
[1737646407481,1.54136,3243.9,3242.7,0.8717]
[1737646407482,1.5417,3243.2,3242.7,0.8717]
[1737646407683,1.5417,3243.2,3242.8,0.23793667]
[1737646408086,1.54182,3243.0,3242.8,0.23793667]
[1737646408305,0.75,3245.0,3242.4,1.51440748]
[1737646408306,1.54192,3242.8,3242.4,1.51440748]
[1737646408606,1.54146,3243.7,3242.4,1.51440748]
[1737646409788,0.55,3244.5,3242.4,1.51440748]
[1737646410011,1.3,3244.3,3241.9,0.8363]
[1737646410156,1.3,3244.3,3242.5,0.0010214]
[1737646410512,0.55,3244.3,3241.9,3.08452]
[1737646410714,0.55,3244.3,3242.2,3.08429]
[1737646411002,5.64,3245.3,3242.8,0.8357]
[1737646411173,5.39,3245.3,3242.9,3.08363]
[1737646411376,3.0,3245.2,3242.9,3.08363]
[1737646411575,5.39,3245.3,3243.0,3.0884167]
[1737646411769,5.39,3245.3,3243.1,0.30884167]
[1737646411991,5.39,3245.3,3243.2,0.00495593]
[1737646412358,3.55,3245.2,3243.1,3.39229167]
[1737646412808,3.55,3245.2,3243.1,0.30884167]
[1737646412960,0.55,3245.2,3243.1,0.30884167]
[1737646413304,0.55,3245.2,3243.2,0.33923917]
[1737646413506,0.55,3245.2,3243.3,0.00271437]
[1737646413706,0.55,3245.2,3243.3,0.00271402]
[1737646414021,3.55,3245.2,3243.2,0.33923917]
[1737646414172,3.8,3245.2,3242.8,0.8357]
[1737646414497,0.55,3244.9,3242.8,0.8357]
[1737646415200,3.0,3245.2,3242.8,3.91943]
[1737646415374,3.0,3245.2,3242.8,4.41244181]
[1737646415563,0.55,3245.1,3242.9,0.44124418]
[1737646415763,0.55,3245.1,3243.0,3.08356]
[1737646415976,3.0,3245.2,3243.0,3.08356]
[1737646416177,3.0,3245.2,3243.0,3.0835]
[1737646416360,0.55,3245.1,3243.0,3.0835]
[1737646416567,0.55,3245.1,3243.1,0.35247442]
[1737646416765,0.5,3245.5,3243.1,0.35247442]
[1737646416766,5.39,3246.0,3243.4,3.08311]
[1737646417085,5.89,3246.0,3243.5,0.8409]
[1737646417437,0.55,3245.8,3243.5,0.8409]
[1737646417762,1.05,3245.8,3243.5,0.8409]
[1737646418478,0.55,3245.8,3243.5,0.8409]
[1737646418678,0.55,3245.8,3243.6,0.392406]
[1737646418864,3.165689,3245.9,3243.6,0.392406]
[1737646419071,0.55,3245.8,3243.6,3.475346]
[1737646419269,0.55,3245.8,3243.6,0.392406]
[1737646419706,0.55,3245.8,3243.5,0.8409]
[1737646420303,0.55,3245.8,3243.5,3.92395]
[1737646420803,0.55,3245.6,3243.5,3.92395]
[1737646421201,0.55,3245.6,3243.6,3.08291]
[1737646421407,0.55,3245.6,3243.7,3.08288]
[1737646421610,0.55,3245.6,3243.8,0.308288]
[1737646422011,0.55,3245.8,3243.8,0.308288]
[1737646422185,0.165689,3245.9,3244.1,3.08244]
[1737646422522,0.165689,3245.9,3243.8,0.308288]
[1737646422523,0.165689,3245.9,3244.7,1.53239577]
[1737646422736,0.165689,3245.9,3244.1,1.54119765]
[1737646422935,0.165689,3245.9,3243.4,0.83301305]
[1737646422936,1.20883678,3245.8,3244.7,0.00095095]
[1737646423082,0.55,3245.7,3243.6,1.50220794]
[1737646423287,0.55,3245.5,3243.6,1.50220794]
[1737646423795,0.55,3245.8,3243.8,1.55703704]
[1737646424118,0.55,3245.8,3244.0,1.57133947]
[1737646424293,0.165689,3245.9,3244.5,2.37560462]
[1737646424294,0.55,3245.5,3244.5,2.37560462]
[1737646424638,0.55,3245.5,3244.6,0.00223416]
[1737646424798,0.55,3245.0,3244.5,2.37560462]
[1737646425305,0.0543,3244.7,3244.5,2.37560462]
[1737646425508,0.0543,3244.6,3244.5,2.37560462]
[1737646425693,0.0543,3244.6,3242.6,2.41852968]
[1737646425894,0.0543,3244.6,3242.7,0.00083353]
[1737646426094,0.0543,3244.6,3242.8,1.52569214]
[1737646426294,0.0543,3244.6,3243.0,1.54060305]
[1737646426497,0.0543,3244.6,3243.1,0.00506222]
[1737646426916,0.0543,3244.6,3243.2,1.58046533]
[1737646427091,0.0543,3244.6,3243.4,1.51915395]
[1737646427287,0.0543,3244.6,3243.5,0.00520284]
[1737646427505,0.0543,3244.4,3242.3,4.75321107]
[1737646427705,0.55,3244.1,3242.7,0.00416769]
[1737646428028,0.55,3243.9,3242.2,0.8383]
[1737646428513,0.55,3243.9,3242.3,0.0041681]
[1737646428682,0.55,3243.7,3242.3,0.0041681]
[1737646428884,0.0543,3244.0,3242.3,0.0041681]
[1737646429091,0.0543,3243.9,3242.1,0.00433509]
[1737646429538,0.0543,3243.9,3242.1,0.16410016]
[1737646429829,0.0543,3243.9,3242.2,1.53143529]
[1737646430144,0.0543,3243.9,3242.1,0.16410016]
[1737646430145,0.0543,3243.9,3242.3,1.57088032]
[1737646432234,0.0543,3243.9,3242.5,1.56970266]
[1737646432524,0.0543,3243.9,3242.6,1.59270496]
[1737646432688,0.0543,3243.9,3242.7,0.1592705]
[1737646433790,0.0543,3243.9,3242.8,0.00375689]
[1737646434222,0.0543,3243.9,3242.8,0.35787295]
[1737646434427,0.0543,3243.9,3242.8,0.00375689]
[1737646435925,0.0543,3244.6,3243.1,1.57770689]
[1737646436140,0.55,3244.5,3243.3,1.54687324]
[1737646436427,0.3218207,3244.7,3243.4,0.00402953]
[1737646436428,0.55,3244.3,3243.4,0.00402953]
[1737646436728,0.55,3244.3,3243.5,1.51092378]
[1737646436895,0.0543,3244.4,3242.9,1.50555133]
[1737646437636,0.0543,3244.4,3243.1,1.57770689]
[1737646437836,0.0543,3244.4,3242.7,0.1592705]
[1737646437837,0.0543,3244.4,3243.3,1.54687324]
[1737646438017,0.0543,3244.4,3243.5,1.51092378]
[1737646438225,0.0543,3244.4,3243.6,1.50741805]
[1737646439001,5.87242098,3245.8,3243.6,1.50741805]
[1737646439737,3.0,3245.7,3243.6,1.50741805]
[1737646440042,5.39,3245.8,3243.6,1.50741805]
[1737646440189,0.55,3245.7,3243.6,1.50741805]
[1737646440392,5.39,3245.8,3243.8,1.55703704]
[1737646440703,5.39,3245.8,3244.0,1.57133947]
[1737646441031,0.55,3245.6,3244.2,1.55381039]
[1737646441229,0.55,3245.6,3244.4,1.56097954]
[1737646441429,0.55,3245.6,3244.6,1.5367517]
[1737646441593,0.55,3245.4,3244.8,1.54594853]
[1737646441792,0.55,3245.4,3244.9,0.00530702]
[1737646442908,3.0,3245.5,3244.9,0.00530702]
[1737646443425,0.55,3245.4,3244.9,0.00530702]
[1737646443928,3.0,3245.5,3243.4,0.8377]
[1737646443929,0.55,3244.8,3243.5,1.51092378]
[1737646444131,3.0,3245.1,3243.7,1.55450922]
[1737646444295,0.92461,3244.6,3243.7,1.55450922]
[1737646444501,0.55,3244.7,3243.7,1.55450922]
[1737646444695,0.92458,3244.7,3243.7,1.55450922]
[1737646444939,1.84888,3245.2,3243.7,1.55450922]
[1737646445126,0.92452,3244.9,3243.9,1.5660708]
[1737646445447,3.0,3245.5,3243.9,1.5660708]
[1737646445598,0.55,3245.4,3243.6,1.76223277]
[1737646448009,0.55,3245.4,3243.6,0.23486238]
[1737646448195,3.0,3244.5,3242.6,0.8252]
[1737646448399,0.55,3244.4,3242.6,0.8252]
[1737646448795,3.0,3244.3,3242.6,0.8252]
[1737646449337,0.55,3244.2,3242.6,0.8252]
[1737646453248,0.55,3244.2,3241.6,0.8458]
[1737646453740,0.55,3244.2,3241.8,0.8458]
[1737646454245,3.0,3243.1,3241.8,0.8458]
[1737646454742,3.50143553,3243.6,3242.0,0.8799]
[1737646454914,3.50143553,3243.6,3242.0,3.96432]
[1737646455115,3.0,3243.5,3242.1,3.0844]
[1737646455341,3.0,3243.5,3242.0,3.96432]
[1737646455547,3.50143553,3243.6,3242.1,0.55]
[1737646455709,3.50143553,3244.0,3243.1,0.9124]
[1737646455912,3.0,3243.9,3243.1,0.9124]
[1737646456112,3.50143553,3244.4,3243.1,0.9124]
[1737646456345,3.0,3244.3,3243.1,0.9124]
[1737646456522,2.9681,3244.3,3243.2,3.32795243]
[1737646456857,3.50143553,3244.4,3243.2,0.24459243]
[1737646457023,3.50143553,3244.0,3243.2,0.24459243]
[1737646457351,3.50143553,3244.0,3243.1,0.9124]
[1737646457711,3.50143553,3244.4,3243.2,4.6473479]
[1737646458046,0.0651,3244.9,3243.7,0.9127]
[1737646458410,0.0651,3244.9,3243.7,3.99557]
[1737646458834,3.50143553,3248.0,3244.3,2.44300636]
[1737646458835,0.0651,3245.6,3244.3,2.44300636]
[1737646459149,0.0651,3245.6,3244.5,1.51285703]
[1737646460120,0.230789,3245.9,3244.6,0.8566]
[1737646460627,0.165689,3245.9,3244.6,0.8566]
[1737646460831,0.165689,3245.9,3245.1,0.9198]
[1737646461029,0.165689,3245.9,3245.2,0.400144]
[1737646461433,0.165689,3245.9,3245.1,0.9198]
[1737646461640,0.0651,3246.7,3245.2,1.53857498]
[1737646462021,3.0,3246.4,3245.2,1.53857498]
[1737646462233,3.50143553,3246.5,3245.2,1.53857498]
[1737646462753,3.55,3246.4,3245.2,1.53857498]
[1737646462915,3.55,3246.4,3245.1,0.9198]
[1737646462916,3.6151,3246.4,3245.4,1.51169031]
[1737646463420,3.0651,3246.4,3245.4,1.51169031]
[1737646463618,0.0651,3246.4,3245.4,1.51169031]
[1737646463829,3.0651,3246.4,3245.4,1.51169031]
[1737646464065,5.39,3247.9,3245.4,1.51169031]
[1737646464066,3.0651,3245.6,3245.4,1.51169031]
[1737646464262,3.0651,3245.6,3245.3,0.2458375]
[1737646464263,3.0651,3245.6,3244.8,1.50400154]
[1737646464462,0.0651,3245.6,3245.0,1.55943988]
[1737646464768,3.50143553,3246.1,3245.0,1.55943988]
[1737646465360,0.55,3246.4,3245.0,1.55943988]
[1737646465733,3.50143553,3246.5,3245.0,2.41223988]
[1737646466670,3.0,3246.4,3245.0,2.41223988]
[1737646466879,3.0,3246.4,3245.2,1.53857498]
[1737646467238,3.50143553,3246.9,3245.2,1.53857498]
[1737646467784,1.58217838,3247.7,3245.2,1.53857498]
[1737646467785,3.0,3246.4,3245.2,1.53857498]
[1737646467993,0.55,3246.3,3245.2,1.53857498]
[1737646468891,3.0,3246.0,3244.7,1.50042832]
[1737646469041,3.0,3246.0,3244.9,1.57356721]
[1737646469242,3.55,3246.4,3244.9,1.57356721]
[1737646469463,3.0,3246.4,3244.9,1.57356721]
[1737646471091,3.0,3246.9,3245.1,1.54234153]
[1737646471256,3.50143553,3247.0,3245.1,1.54234153]
[1737646471451,3.0,3246.9,3245.3,1.56893722]
[1737646471642,0.55,3246.8,3245.3,1.56893722]
[1737646471843,3.55,3246.5,3245.3,1.56893722]
[1737646472153,3.55,3246.5,3245.1,1.54234153]
[1737646472349,3.55,3246.1,3245.1,1.54234153]
[1737646472676,3.50143553,3245.8,3245.1,1.54234153]
[1737646472843,3.50143553,3246.2,3244.8,1.50400154]
[1737646473039,0.55,3246.1,3244.8,1.50400154]
[1737646473436,3.50143553,3246.2,3244.8,1.50400154]
[1737646473748,0.55,3246.1,3244.8,1.50400154]
[1737646474668,3.0,3245.7,3243.9,1.5660708]
[1737646474840,4.12658709,3246.6,3245.9,1.59762139]
[1737646474841,3.743,3246.6,3245.9,1.59762139]
[1737646475043,3.743,3246.6,3245.8,3.07932405]
[1737646475238,0.5,3246.6,3245.8,3.07932405]
[1737646475548,0.5,3247.1,3245.9,1.59762139]
[1737646475748,0.5,3246.9,3245.9,1.59762139]
[1737646475951,1.90205977,3247.7,3246.0,0.46769454]
[1737646476154,1.90205977,3247.7,3246.1,1.51510572]
[1737646476155,1.58217838,3247.7,3246.1,1.51510572]
[1737646476352,1.58217838,3247.7,3245.8,1.53630936]
[1737646477571,0.55,3247.6,3245.8,1.53630936]
[1737646477943,0.55,3247.6,3245.7,0.9062]
[1737646478279,0.25,3247.2,3244.1,1.55870872]
[1737646478578,0.25,3247.2,3244.2,1.08398558]
[1737646478579,0.55,3246.5,3244.2,1.08398558]
[1737646478783,3.55,3246.5,3244.2,2.61560791]
[1737646478961,0.75,3247.1,3244.2,2.61560791]
[1737646479279,0.5,3247.3,3244.5,1.51285703]
[1737646479452,0.5,3247.1,3244.5,1.51285703]
[1737646479752,0.5,3247.1,3244.4,0.9205]
[1737646479955,3.55,3247.0,3244.5,0.25181064]
[1737646480149,0.5,3247.3,3244.6,0.9205]
[1737646480489,0.5,3247.0,3244.7,0.9205]
[1737646480645,0.5,3246.4,3244.0,0.8825]
[1737646480846,0.55,3245.9,3244.0,0.8825]
[1737646481047,3.55,3245.9,3244.0,0.8825]
[1737646482167,0.5,3246.0,3244.0,0.8825]
[1737646482367,3.243,3246.2,3244.0,0.8825]